[Event "*** Titled Tuesday Blitz"]
[Site "Chess.com"]
[Date "2021.03.16"]
[Round "8"]
[White "rynos0411"]
[Black "GMRafpig"]
[Result "1/2-1/2"]
[WhiteElo "2509"]
[BlackElo "2631"]
[TimeControl "180+1"]
[EndTime "11:28:44 PDT"]
[Termination "Game drawn by repetition"]

1. d4 {[%clk 0:02:57.7]} 1... Nf6 {[%clk 0:02:59.7]} 2. c4 {[%clk 0:02:56.9]}
2... e6 {[%clk 0:02:59.9]} 3. Nf3 {[%clk 0:02:56.5]} 3... Bb4+ {[%clk 0:02:59]}
4. Bd2 {[%clk 0:02:56.3]} 4... c5 {[%clk 0:02:58.6]} 5. Bxb4 {[%clk 0:02:47.6]}
5... cxb4 {[%clk 0:02:58.8]} 6. a3 {[%clk 0:02:47]} 6... Qe7 {[%clk 0:02:55]} 7.
Qb3 {[%clk 0:02:45.2]} 7... bxa3 {[%clk 0:02:53.3]} 8. Rxa3 {[%clk 0:02:45.2]}
8... O-O {[%clk 0:02:51.2]} 9. Nc3 {[%clk 0:02:45.1]} 9... Nc6 {[%clk
0:02:48.7]} 10. e3 {[%clk 0:02:43.6]} 10... d6 {[%clk 0:02:33.6]} 11. Be2 {[%clk
0:02:35.6]} 11... b6 {[%clk 0:02:20.9]} 12. O-O {[%clk 0:02:29.6]} 12... e5
{[%clk 0:02:20.7]} 13. d5 {[%clk 0:02:29]} 13... Na5 {[%clk 0:02:17.1]} 14. Qa2
{[%clk 0:02:25.2]} 14... Bg4 {[%clk 0:01:35.3]} 15. b4 {[%clk 0:02:19.6]} 15...
Nb7 {[%clk 0:01:25.3]} 16. Rxa7 {[%clk 0:02:16.2]} 16... Rab8 {[%clk 0:01:25.6]}
17. Qa6 {[%clk 0:01:39.6]} 17... Bxf3 {[%clk 0:01:02.3]} 18. Bxf3 {[%clk
0:01:39.6]} 18... Qc7 {[%clk 0:00:59.8]} 19. Be2 {[%clk 0:01:34]} 19... Nd7
{[%clk 0:00:55.5]} 20. Nb5 {[%clk 0:01:32.1]} 20... Qc8 {[%clk 0:00:55.8]} 21.
Ra1 {[%clk 0:01:26.8]} 21... Rd8 {[%clk 0:00:54.1]} 22. Rc1 {[%clk 0:01:21.3]}
22... Nf6 {[%clk 0:00:47.9]} 23. Qxb6 {[%clk 0:00:49.6]} 23... Nxd5 {[%clk
0:00:45.6]} 24. Qa6 {[%clk 0:00:27]} 24... Nxb4 {[%clk 0:00:45.3]} 25. Qa3
{[%clk 0:00:26.9]} 25... Nc6 {[%clk 0:00:42.4]} 26. Ra6 {[%clk 0:00:25.9]} 26...
Ne7 {[%clk 0:00:23]} 27. Nxd6 {[%clk 0:00:21.1]} 27... Qc7 {[%clk 0:00:20]} 28.
Nxb7 {[%clk 0:00:18.9]} 28... Rxb7 {[%clk 0:00:19.4]} 29. Ra8 {[%clk 0:00:17]}
29... Rbb8 {[%clk 0:00:18]} 30. Rxb8 {[%clk 0:00:17.1]} 30... Rxb8 {[%clk
0:00:17.7]} 31. g3 {[%clk 0:00:16.7]} 31... Nc6 {[%clk 0:00:17.8]} 32. Qc5
{[%clk 0:00:16.1]} 32... Rc8 {[%clk 0:00:15.2]} 33. Bf3 {[%clk 0:00:16.2]} 33...
f6 {[%clk 0:00:14.3]} 34. Bd5+ {[%clk 0:00:15.8]} 34... Kh8 {[%clk 0:00:14.7]}
35. Rb1 {[%clk 0:00:14.6]} 35... h6 {[%clk 0:00:12.6]} 36. Be6 {[%clk
0:00:10.4]} 36... Re8 {[%clk 0:00:11.8]} 37. Bd5 {[%clk 0:00:10.1]} 37... Rc8
{[%clk 0:00:12.1]} 38. Rb6 {[%clk 0:00:06.6]} 38... Ne7 {[%clk 0:00:09.1]} 39.
Qxc7 {[%clk 0:00:06.8]} 39... Rxc7 {[%clk 0:00:09.5]} 40. Rb8+ {[%clk
0:00:07.2]} 40... Kh7 {[%clk 0:00:09.9]} 41. Be4+ {[%clk 0:00:07.2]} 41... f5
{[%clk 0:00:09.7]} 42. Bd3 {[%clk 0:00:07.5]} 42... e4 {[%clk 0:00:10.1]} 43.
Be2 {[%clk 0:00:07.9]} 43... Kg6 {[%clk 0:00:10.6]} 44. Kg2 {[%clk 0:00:08.1]}
44... Kf6 {[%clk 0:00:11.3]} 45. Rb6+ {[%clk 0:00:08.5]} 45... Ke5 {[%clk
0:00:11.5]} 46. Rb5+ {[%clk 0:00:08.1]} 46... Kf6 {[%clk 0:00:11.4]} 47. h4
{[%clk 0:00:08.4]} 47... g5 {[%clk 0:00:11.1]} 48. hxg5+ {[%clk 0:00:08.4]}
48... hxg5 {[%clk 0:00:10.9]} 49. Rb6+ {[%clk 0:00:08.8]} 49... Ke5 {[%clk
0:00:11.3]} 50. Rb8 {[%clk 0:00:08.5]} 50... g4 {[%clk 0:00:11.2]} 51. Re8
{[%clk 0:00:07.8]} 51... Kf6 {[%clk 0:00:11.4]} 52. Kf1 {[%clk 0:00:08.2]} 52...
Ng6 {[%clk 0:00:11.7]} 53. Ke1 {[%clk 0:00:08.2]} 53... Ne5 {[%clk 0:00:12]} 54.
Rf8+ {[%clk 0:00:07.7]} 54... Ke6 {[%clk 0:00:11.6]} 55. Re8+ {[%clk 0:00:08.1]}
55... Kf6 {[%clk 0:00:12]} 56. Rf8+ {[%clk 0:00:08.3]} 56... Ke6 {[%clk
0:00:12.4]} 57. Re8+ {[%clk 0:00:05.8]} 57... Kf6 {[%clk 0:00:12.7]} 1/2-1/2

[Event "*** Titled Tuesday Blitz"]
[Site "Chess.com"]
[Date "2021.03.16"]
[Round "8"]
[White "Fischerev7"]
[Black "GameOverBro"]
[Result "0-1"]
[WhiteElo "2393"]
[BlackElo "2518"]
[TimeControl "180+1"]
[EndTime "11:28:46 PDT"]
[Termination "GameOverBro won on time"]

1. e4 {[%clk 0:03:00.9]} 1... Nf6 {[%clk 0:03:00.1]} 2. Nc3 {[%clk 0:02:58.9]}
2... d6 {[%clk 0:02:59.7]} 3. d4 {[%clk 0:02:58.3]} 3... e5 {[%clk 0:02:59.6]}
4. Nf3 {[%clk 0:02:55.9]} 4... Nbd7 {[%clk 0:02:59.3]} 5. Bc4 {[%clk 0:02:55.8]}
5... Be7 {[%clk 0:02:58.8]} 6. O-O {[%clk 0:02:54.2]} 6... c6 {[%clk 0:02:59.3]}
7. a4 {[%clk 0:02:53.8]} 7... Qc7 {[%clk 0:02:58.8]} 8. h3 {[%clk 0:02:51.7]}
8... h6 {[%clk 0:02:58.8]} 9. a5 {[%clk 0:02:46.3]} 9... O-O {[%clk 0:02:58]}
10. Bb3 {[%clk 0:02:40.8]} 10... Re8 {[%clk 0:02:57.5]} 11. dxe5 {[%clk
0:02:39.7]} 11... dxe5 {[%clk 0:02:57.3]} 12. Qe2 {[%clk 0:02:38.4]} 12... Nc5
{[%clk 0:02:54.7]} 13. Bc4 {[%clk 0:02:35.3]} 13... Be6 {[%clk 0:02:50.5]} 14.
Rd1 {[%clk 0:02:32.2]} 14... b5 {[%clk 0:02:47.2]} 15. axb6 {[%clk 0:02:29.5]}
15... axb6 {[%clk 0:02:48.1]} 16. Rxa8 {[%clk 0:02:29.7]} 16... Rxa8 {[%clk
0:02:45.3]} 17. b4 {[%clk 0:02:23.3]} 17... b5 {[%clk 0:02:37.7]} 18. Bxb5
{[%clk 0:02:05.2]} 18... cxb5 {[%clk 0:02:24.4]} 19. Nxb5 {[%clk 0:01:52.7]}
19... Qb8 {[%clk 0:02:05.1]} 20. bxc5 {[%clk 0:01:50.8]} 20... Bxc5 {[%clk
0:02:06]} 21. c4 {[%clk 0:01:44]} 21... Ra1 {[%clk 0:01:53.8]} 22. Qb2 {[%clk
0:01:18.7]} 22... Ra4 {[%clk 0:01:30.3]} 23. Qxe5 {[%clk 0:01:05.7]} 23... Qxe5
{[%clk 0:01:28.4]} 24. Nxe5 {[%clk 0:01:06.6]} 24... Nxe4 {[%clk 0:01:25.3]} 25.
Be3 {[%clk 0:00:59.3]} 25... Bxe3 {[%clk 0:01:20.1]} 26. fxe3 {[%clk 0:01:00.2]}
26... Bxc4 {[%clk 0:01:17.5]} 27. Nxc4 {[%clk 0:00:56.6]} 27... Rxc4 {[%clk
0:01:18.4]} 28. Rd4 {[%clk 0:00:53.7]} 28... Rc1+ {[%clk 0:01:16.4]} 29. Kh2
{[%clk 0:00:54.1]} 29... Nf6 {[%clk 0:01:08.3]} 30. Rd2 {[%clk 0:00:49]} 30...
Re1 {[%clk 0:01:06.6]} 31. Rd3 {[%clk 0:00:43.5]} 31... g5 {[%clk 0:00:58.2]}
32. Kg3 {[%clk 0:00:41.3]} 32... Ne4+ {[%clk 0:00:56.5]} 33. Kf3 {[%clk
0:00:37.8]} 33... f5 {[%clk 0:00:54.3]} 34. g4 {[%clk 0:00:24.4]} 34... Rf1+
{[%clk 0:00:48.5]} 35. Ke2 {[%clk 0:00:24.3]} 35... Rf2+ {[%clk 0:00:48.4]} 36.
Ke1 {[%clk 0:00:24.8]} 36... Rb2 {[%clk 0:00:48.6]} 37. Nd6 {[%clk 0:00:21.3]}
37... fxg4 {[%clk 0:00:36.7]} 38. Nxe4 {[%clk 0:00:13.9]} 38... gxh3 {[%clk
0:00:36.7]} 39. Ng3 {[%clk 0:00:12.1]} 39... h2 {[%clk 0:00:36.8]} 40. Rd2
{[%clk 0:00:06.8]} 40... Rb1+ {[%clk 0:00:33.4]} 41. Kf2 {[%clk 0:00:06.8]}
41... h1=Q {[%clk 0:00:32.9]} 42. Nxh1 {[%clk 0:00:06.8]} 42... Rxh1 {[%clk
0:00:33.8]} 43. Rd7 {[%clk 0:00:06.6]} 43... Ra1 {[%clk 0:00:25.1]} 44. Kf3
{[%clk 0:00:05.5]} 44... Rf1+ {[%clk 0:00:24.5]} 45. Kg2 {[%clk 0:00:05.3]}
45... Rf7 {[%clk 0:00:25.4]} 46. Rd6 {[%clk 0:00:04.5]} 46... Kg7 {[%clk
0:00:26]} 47. e4 {[%clk 0:00:04.8]} 47... Rf6 {[%clk 0:00:26.4]} 48. Rd7+ {[%clk
0:00:03.6]} 48... Kg6 {[%clk 0:00:26.7]} 49. Kg3 {[%clk 0:00:03.8]} 49... Rf4
{[%clk 0:00:26.5]} 50. Re7 {[%clk 0:00:01.9]} 50... h5 {[%clk 0:00:26.2]} 51.
Re6+ {[%clk 0:00:02.2]} 51... Kf7 {[%clk 0:00:26.1]} 52. Re5 {[%clk 0:00:02.7]}
52... h4+ {[%clk 0:00:26.1]} 53. Kg2 {[%clk 0:00:02.2]} 53... Kf6 {[%clk
0:00:26.5]} 54. Re8 {[%clk 0:00:02]} 54... Kg6 {[%clk 0:00:27]} 55. Re6+ {[%clk
0:00:02]} 55... Kh5 {[%clk 0:00:27.2]} 56. Re8 {[%clk 0:00:02.8]} 56... Kg4
{[%clk 0:00:27.7]} 57. Re5 {[%clk 0:00:03]} 57... h3+ {[%clk 0:00:27.9]} 58. Kg1
{[%clk 0:00:02.7]} 58... Rf3 {[%clk 0:00:27.6]} 59. Re8 {[%clk 0:00:02.3]} 59...
Kg3 {[%clk 0:00:27.7]} 60. Rg8 {[%clk 0:00:01.7]} 60... h2+ {[%clk 0:00:26.9]}
0-1

[Event "*** Titled Tuesday Blitz"]
[Site "Chess.com"]
[Date "2021.03.16"]
[Round "8"]
[White "AsaHoffmann"]
[Black "FMJoseHerrera"]
[Result "1-0"]
[WhiteElo "2367"]
[BlackElo "2500"]
[TimeControl "180+1"]
[EndTime "11:28:46 PDT"]
[Termination "AsaHoffmann won by resignation"]

1. d4 {[%clk 0:02:51.4]} 1... Nf6 {[%clk 0:02:59.5]} 2. Bg5 {[%clk 0:02:47.1]}
2... Ne4 {[%clk 0:02:58.8]} 3. Bf4 {[%clk 0:02:46.5]} 3... c5 {[%clk 0:02:58.8]}
4. f3 {[%clk 0:02:46.4]} 4... Qa5+ {[%clk 0:02:57.1]} 5. c3 {[%clk 0:02:44.7]}
5... Nf6 {[%clk 0:02:57.2]} 6. d5 {[%clk 0:02:43.7]} 6... Qb6 {[%clk 0:02:56.5]}
7. e4 {[%clk 0:02:43.4]} 7... g6 {[%clk 0:02:51.2]} 8. Qd2 {[%clk 0:02:42]} 8...
Bg7 {[%clk 0:02:46.9]} 9. Na3 {[%clk 0:02:41.3]} 9... h5 {[%clk 0:02:45.1]} 10.
Nc4 {[%clk 0:02:40.5]} 10... Qd8 {[%clk 0:02:45.2]} 11. d6 {[%clk 0:02:34.7]}
11... e6 {[%clk 0:02:35]} 12. a4 {[%clk 0:02:33.1]} 12... O-O {[%clk 0:02:32.6]}
13. Bg5 {[%clk 0:02:27.3]} 13... Qe8 {[%clk 0:02:29.3]} 14. Nh3 {[%clk
0:02:21.1]} 14... b6 {[%clk 0:02:16.9]} 15. Be2 {[%clk 0:02:17.1]} 15... Nc6
{[%clk 0:02:12]} 16. O-O {[%clk 0:02:07.9]} 16... e5 {[%clk 0:01:56.5]} 17. Nf2
{[%clk 0:01:54.7]} 17... Ba6 {[%clk 0:01:39.6]} 18. Rfd1 {[%clk 0:01:53.5]}
18... Bxc4 {[%clk 0:01:39.4]} 19. Bxc4 {[%clk 0:01:52.8]} 19... Na5 {[%clk
0:01:39.8]} 20. Ba2 {[%clk 0:01:49.4]} 20... c4 {[%clk 0:01:38.9]} 21. Qe3
{[%clk 0:01:34.9]} 21... Rc8 {[%clk 0:01:36.9]} 22. Rac1 {[%clk 0:01:20.9]}
22... Nh7 {[%clk 0:01:20.1]} 23. Be7 {[%clk 0:01:15.2]} 23... f5 {[%clk
0:01:17.2]} 24. Bxf8 {[%clk 0:01:12.9]} 24... Nxf8 {[%clk 0:01:18.1]} 25. exf5
{[%clk 0:01:09.5]} 25... gxf5 {[%clk 0:01:17.5]} 26. Qg5 {[%clk 0:01:08.5]}
26... Qf7 {[%clk 0:01:01.4]} 27. Bb1 {[%clk 0:01:07.6]} 27... Nb3 {[%clk
0:00:49.6]} 28. Qxf5 {[%clk 0:01:05.1]} 28... Nxc1 {[%clk 0:00:48.1]} 29. Rxc1
{[%clk 0:00:57.2]} 29... Rc6 {[%clk 0:00:47.1]} 30. Qxf7+ {[%clk 0:00:53.6]}
30... Kxf7 {[%clk 0:00:46.7]} 31. Rd1 {[%clk 0:00:50.4]} 31... Ne6 {[%clk
0:00:42.2]} 32. Be4 {[%clk 0:00:49.5]} 32... Rc8 {[%clk 0:00:39.2]} 33. Bd5
{[%clk 0:00:48.2]} 33... Bf8 {[%clk 0:00:36.6]} 34. Ne4 {[%clk 0:00:47.7]} 34...
Kg6 {[%clk 0:00:22.7]} 35. Bxe6 {[%clk 0:00:46.4]} 35... dxe6 {[%clk 0:00:22.3]}
36. d7 {[%clk 0:00:39.5]} 36... Rd8 {[%clk 0:00:21.8]} 37. h4 {[%clk 0:00:37.3]}
37... Be7 {[%clk 0:00:20.8]} 38. g3 {[%clk 0:00:36.7]} 38... Kf7 {[%clk
0:00:20.4]} 39. Kf2 {[%clk 0:00:35.5]} 39... Kg6 {[%clk 0:00:20.3]} 40. Ke3
{[%clk 0:00:35.4]} 40... Kf7 {[%clk 0:00:20.8]} 41. Ng5+ {[%clk 0:00:31.6]}
41... Kf6 {[%clk 0:00:20.5]} 42. Ke4 {[%clk 0:00:31.5]} 42... a6 {[%clk
0:00:19.7]} 43. Rd2 {[%clk 0:00:29.8]} 43... b5 {[%clk 0:00:19.8]} 44. axb5
{[%clk 0:00:28.5]} 44... axb5 {[%clk 0:00:20.7]} 45. Nh3 {[%clk 0:00:18.6]}
45... b4 {[%clk 0:00:20.8]} 46. f4 {[%clk 0:00:17.7]} 46... exf4 {[%clk
0:00:19]} 47. Nxf4 {[%clk 0:00:17.6]} 47... bxc3 {[%clk 0:00:19.2]} 48. bxc3
{[%clk 0:00:17.6]} 48... e5 {[%clk 0:00:18]} 49. Nxh5+ {[%clk 0:00:16.2]} 49...
Ke6 {[%clk 0:00:18.4]} 50. Ng7+ {[%clk 0:00:14.9]} 50... Kf6 {[%clk 0:00:18.7]}
51. Nf5 {[%clk 0:00:14.6]} 51... Ba3 {[%clk 0:00:18.9]} 52. g4 {[%clk
0:00:13.9]} 52... Ke6 {[%clk 0:00:19]} 53. g5 {[%clk 0:00:13.2]} 53... Bc1
{[%clk 0:00:16.9]} 54. Rd5 {[%clk 0:00:12.1]} 54... Bf4 {[%clk 0:00:17.1]} 55.
g6 {[%clk 0:00:10.2]} 55... Kf6 {[%clk 0:00:17.3]} 56. h5 {[%clk 0:00:10]} 56...
Kg5 {[%clk 0:00:14.9]} 57. g7 {[%clk 0:00:09.8]} 57... Kxh5 {[%clk 0:00:14.7]}
58. g8=Q {[%clk 0:00:09]} 58... Rxg8 {[%clk 0:00:15.3]} 59. d8=Q {[%clk
0:00:08.5]} 59... Rxd8 {[%clk 0:00:15.7]} 60. Rxd8 {[%clk 0:00:08.2]} 1-0

[Event "*** Titled Tuesday Blitz"]
[Site "Chess.com"]
[Date "2021.03.16"]
[Round "8"]
[White "BogdanDeac"]
[Black "Evgeny81"]
[Result "1/2-1/2"]
[WhiteElo "2971"]
[BlackElo "2782"]
[TimeControl "180+1"]
[EndTime "11:28:49 PDT"]
[Termination "Game drawn - insufficient material"]

1. e4 {[%clk 0:03:00.9]} 1... c6 {[%clk 0:02:58.9]} 2. Nf3 {[%clk 0:03:00.4]}
2... d5 {[%clk 0:02:59.8]} 3. d3 {[%clk 0:03:00.5]} 3... dxe4 {[%clk 0:02:58.7]}
4. dxe4 {[%clk 0:03:00.8]} 4... Qxd1+ {[%clk 0:02:59.4]} 5. Kxd1 {[%clk
0:03:01.7]} 5... f6 {[%clk 0:02:57.9]} 6. Ne1 {[%clk 0:02:55.5]} 6... e5 {[%clk
0:02:56.9]} 7. Nd3 {[%clk 0:02:43.2]} 7... Be6 {[%clk 0:02:54]} 8. Be3 {[%clk
0:02:35]} 8... Nd7 {[%clk 0:02:51.2]} 9. a4 {[%clk 0:02:33.5]} 9... g6 {[%clk
0:02:50.5]} 10. a5 {[%clk 0:02:23.3]} 10... Bh6 {[%clk 0:02:49.8]} 11. Kd2
{[%clk 0:02:20.4]} 11... Bxe3+ {[%clk 0:02:47.4]} 12. Kxe3 {[%clk 0:02:21.3]}
12... Nh6 {[%clk 0:02:45.9]} 13. f3 {[%clk 0:02:19.7]} 13... f5 {[%clk
0:02:42.8]} 14. Nc3 {[%clk 0:02:11]} 14... Ke7 {[%clk 0:02:38.5]} 15. Be2 {[%clk
0:02:05.2]} 15... Rhf8 {[%clk 0:02:34.3]} 16. Ra4 {[%clk 0:01:57.4]} 16... Nf7
{[%clk 0:02:27.2]} 17. h4 {[%clk 0:01:44.1]} 17... Nd6 {[%clk 0:02:24.6]} 18. b3
{[%clk 0:01:43.8]} 18... h6 {[%clk 0:02:12.3]} 19. Nd1 {[%clk 0:00:44.2]} 19...
f4+ {[%clk 0:01:50.8]} 20. Kd2 {[%clk 0:00:42.8]} 20... Rh8 {[%clk 0:01:48.6]}
21. g4 {[%clk 0:00:32.5]} 21... fxg3 {[%clk 0:01:43.5]} 22. Rg1 {[%clk
0:00:31.9]} 22... Rag8 {[%clk 0:01:30.9]} 23. Rxg3 {[%clk 0:00:23.9]} 23... g5
{[%clk 0:01:31]} 24. hxg5 {[%clk 0:00:23.9]} 24... Rxg5 {[%clk 0:01:31.6]} 25.
Rxg5 {[%clk 0:00:22.7]} 25... hxg5 {[%clk 0:01:32.5]} 26. N1f2 {[%clk
0:00:22.7]} 26... Rh2 {[%clk 0:01:24.6]} 27. c4 {[%clk 0:00:17.1]} 27... Ne8
{[%clk 0:00:55.4]} 28. Ra1 {[%clk 0:00:15.5]} 28... Nef6 {[%clk 0:00:53.7]} 29.
Rg1 {[%clk 0:00:15.3]} 29... Nh7 {[%clk 0:00:29.2]} 30. Ke3 {[%clk 0:00:15.3]}
30... Rh4 {[%clk 0:00:26.8]} 31. Rc1 {[%clk 0:00:09]} 31... Kf6 {[%clk 0:00:26]}
32. b4 {[%clk 0:00:09.3]} 32... Ke7 {[%clk 0:00:25]} 33. b5 {[%clk 0:00:09.5]}
33... c5 {[%clk 0:00:24.9]} 34. b6 {[%clk 0:00:09.6]} 34... axb6 {[%clk
0:00:22.2]} 35. axb6 {[%clk 0:00:09.6]} 35... Nhf6 {[%clk 0:00:22.4]} 36. Rb1
{[%clk 0:00:06.5]} 36... g4 {[%clk 0:00:20.2]} 37. fxg4 {[%clk 0:00:06.4]} 37...
Bxg4 {[%clk 0:00:19.4]} 38. Nxg4 {[%clk 0:00:04.9]} 38... Nxg4+ {[%clk
0:00:20.3]} 39. Bxg4 {[%clk 0:00:05.5]} 39... Rxg4 {[%clk 0:00:21]} 40. Rh1
{[%clk 0:00:06]} 40... Rg3+ {[%clk 0:00:20.8]} 41. Ke2 {[%clk 0:00:06]} 41...
Nxb6 {[%clk 0:00:19.6]} 42. Nxc5 {[%clk 0:00:06.3]} 42... Nxc4 {[%clk
0:00:18.8]} 43. Nxb7 {[%clk 0:00:06.3]} 43... Re3+ {[%clk 0:00:17.5]} 44. Kf2
{[%clk 0:00:06.7]} 44... Rxe4 {[%clk 0:00:17.7]} 45. Nc5 {[%clk 0:00:07]} 45...
Rf4+ {[%clk 0:00:17.4]} 46. Ke2 {[%clk 0:00:07.4]} 46... Kd6 {[%clk 0:00:17.8]}
47. Nd3 {[%clk 0:00:07.6]} 47... Re4+ {[%clk 0:00:18.1]} 48. Kf2 {[%clk
0:00:07.7]} 48... Rd4 {[%clk 0:00:17.8]} 49. Rh6+ {[%clk 0:00:07.9]} 49... Kd5
{[%clk 0:00:17.1]} 50. Ke2 {[%clk 0:00:07.3]} 50... Re4+ {[%clk 0:00:15.5]} 51.
Kf2 {[%clk 0:00:07.4]} 51... Rg4 {[%clk 0:00:14.8]} 52. Rh5 {[%clk 0:00:06.6]}
52... Rg7 {[%clk 0:00:11.9]} 53. Ke2 {[%clk 0:00:05.7]} 53... Kd4 {[%clk
0:00:11.1]} 54. Nf2 {[%clk 0:00:05.6]} 54... e4 {[%clk 0:00:10.2]} 55. Rh4
{[%clk 0:00:06]} 55... Re7 {[%clk 0:00:09.7]} 56. Rxe4+ {[%clk 0:00:05.8]} 56...
Rxe4+ {[%clk 0:00:09.3]} 57. Nxe4 {[%clk 0:00:06.7]} 1/2-1/2

[Event "*** Titled Tuesday Blitz"]
[Site "Chess.com"]
[Date "2021.03.16"]
[Round "8"]
[White "Fighter008"]
[Black "Chigorinetz"]
[Result "1-0"]
[WhiteElo "2639"]
[BlackElo "2498"]
[TimeControl "180+1"]
[EndTime "11:28:49 PDT"]
[Termination "Fighter008 won on time"]

1. e4 {[%clk 0:03:00.9]} 1... c5 {[%clk 0:02:59]} 2. Nf3 {[%clk 0:03:00.9]} 2...
Nc6 {[%clk 0:02:59]} 3. Bb5 {[%clk 0:02:59.9]} 3... g5 {[%clk 0:02:58.4]} 4.
Nxg5 {[%clk 0:02:48.6]} 4... Nf6 {[%clk 0:02:58]} 5. Nc3 {[%clk 0:02:37.5]} 5...
Rg8 {[%clk 0:02:55.2]} 6. d3 {[%clk 0:02:32.8]} 6... h6 {[%clk 0:02:54.5]} 7.
Nf3 {[%clk 0:02:30.5]} 7... Rxg2 {[%clk 0:02:53.1]} 8. Be3 {[%clk 0:02:30.2]}
8... d6 {[%clk 0:02:43]} 9. d4 {[%clk 0:02:27.7]} 9... cxd4 {[%clk 0:02:09.9]}
10. Nxd4 {[%clk 0:02:26.3]} 10... Bd7 {[%clk 0:02:10]} 11. Bf1 {[%clk
0:02:21.5]} 11... Rg6 {[%clk 0:02:06]} 12. Qd2 {[%clk 0:02:20.5]} 12... Ng4
{[%clk 0:02:03.9]} 13. O-O-O {[%clk 0:02:19.6]} 13... Nxe3 {[%clk 0:02:02.8]}
14. fxe3 {[%clk 0:02:19.7]} 14... e6 {[%clk 0:01:54.9]} 15. Be2 {[%clk
0:02:17.7]} 15... a6 {[%clk 0:01:42.4]} 16. Rhf1 {[%clk 0:02:07.2]} 16... Ne5
{[%clk 0:01:40.7]} 17. Nf3 {[%clk 0:02:00.5]} 17... Nxf3 {[%clk 0:01:34.4]} 18.
Bxf3 {[%clk 0:01:59.1]} 18... Rc8 {[%clk 0:01:31]} 19. e5 {[%clk 0:01:51.2]}
19... d5 {[%clk 0:01:26]} 20. Bh5 {[%clk 0:01:48.8]} 20... Rg7 {[%clk
0:01:24.6]} 21. e4 {[%clk 0:01:49.1]} 21... Qg5 {[%clk 0:01:20.4]} 22. Qxg5
{[%clk 0:01:41.2]} 22... hxg5 {[%clk 0:01:14.3]} 23. exd5 {[%clk 0:01:41]} 23...
Bb4 {[%clk 0:01:10.7]} 24. Ne4 {[%clk 0:01:34.5]} 24... Bb5 {[%clk 0:01:07.2]}
25. d6 {[%clk 0:01:06]} 25... Kf8 {[%clk 0:00:53.3]} 26. Rf6 {[%clk 0:00:59.2]}
26... Rh7 {[%clk 0:00:38.1]} 27. d7 {[%clk 0:00:48.1]} 27... Rd8 {[%clk
0:00:31.6]} 28. Bg4 {[%clk 0:00:20.5]} 28... Ke7 {[%clk 0:00:20.5]} 29. Nxg5
{[%clk 0:00:19]} 29... Rxd7 {[%clk 0:00:19.2]} 30. Rxd7+ {[%clk 0:00:18]} 30...
Bxd7 {[%clk 0:00:20.1]} 31. Nxh7 {[%clk 0:00:18.3]} 31... Bc5 {[%clk 0:00:17.8]}
32. Kd1 {[%clk 0:00:16.1]} 32... Bd4 {[%clk 0:00:17]} 33. Rf1 {[%clk 0:00:14.7]}
33... Bxe5 {[%clk 0:00:16.7]} 34. Ng5 {[%clk 0:00:15.1]} 34... f5 {[%clk
0:00:16.7]} 35. Be2 {[%clk 0:00:14.3]} 35... Bc6 {[%clk 0:00:16.4]} 36. Nf3
{[%clk 0:00:14.1]} 36... Bf4 {[%clk 0:00:16.2]} 37. h3 {[%clk 0:00:13.6]} 37...
Bd5 {[%clk 0:00:15.1]} 38. b3 {[%clk 0:00:13.6]} 38... Kf6 {[%clk 0:00:14.2]}
39. Bd3 {[%clk 0:00:13.8]} 39... e5 {[%clk 0:00:11.8]} 40. c4 {[%clk 0:00:14.1]}
40... Bc6 {[%clk 0:00:11.2]} 41. Be2 {[%clk 0:00:14.5]} 41... Be3 {[%clk
0:00:09.6]} 42. h4 {[%clk 0:00:13]} 42... e4 {[%clk 0:00:08.6]} 43. Ng5 {[%clk
0:00:12.2]} 43... f4 {[%clk 0:00:08.6]} 44. Nh3 {[%clk 0:00:10.6]} 44... Ke5
{[%clk 0:00:07]} 45. Nf2 {[%clk 0:00:09.8]} 45... f3 {[%clk 0:00:06]} 46. Bxf3
{[%clk 0:00:09]} 46... exf3 {[%clk 0:00:04.1]} 47. Ng4+ {[%clk 0:00:09.2]} 47...
Kf4 {[%clk 0:00:04.2]} 48. Nxe3 {[%clk 0:00:09.5]} 48... Kxe3 {[%clk 0:00:05.1]}
49. Ke1 {[%clk 0:00:09.9]} 49... Be8 {[%clk 0:00:03.7]} 50. Rf2 {[%clk
0:00:10.1]} 50... Bh5 {[%clk 0:00:03]} 51. Rh2 {[%clk 0:00:10.1]} 51... a5
{[%clk 0:00:02.5]} 52. a3 {[%clk 0:00:10.3]} 1-0